bitfinex/quotes_SOLUSD_20241113
["timestamp","ask_amount","ask_price","bid_price","bid_amount"]
[1731485934093,23.776884,205.44,205.37,9.7383]
[1731485935005,28.644584,205.44,205.37,9.7383]
[1731485935593,22.67274802,205.43,205.34,22.67274802]
[1731485936095,22.67274802,205.46,205.39,22.67274802]
[1731485936322,4.8659,205.51,205.37,22.67274802]
[1731485936323,22.67274802,205.48,205.37,22.67274802]
[1731485936480,22.67274802,205.46,205.37,22.67274802]
[1731485936883,22.67274802,205.44,205.35,22.67274802]
[1731485937203,4.8678,205.43,205.35,22.67274802]
[1731485937695,23.776884,205.42,205.35,22.67274802]
[1731485938195,22.67274802,205.36,205.31,13.6377]
[1731485938381,22.67274802,205.39,205.28,6.469]
[1731485938382,22.67274802,205.34,205.28,6.469]
[1731485938581,22.67274802,205.34,205.28,3.897]
[1731485938769,22.67274802,205.34,205.28,13.6397]
[1731485939783,16.5083,205.44,205.28,36.31244802]
[1731485939784,23.776884,205.38,205.28,36.31244802]
[1731485939793,22.67274802,205.37,205.28,36.31244802]
[1731485939996,23.776884,205.36,205.28,36.31244802]
[1731485940188,23.776884,205.36,205.29,312.0]
[1731485940693,4.868,205.42,205.3,22.67274802]
[1731485940975,23.776884,205.37,205.3,22.67274802]
[1731485941116,22.67274802,205.36,205.28,32.41544802]
[1731485941397,22.67274802,205.36,205.29,9.7423]
[1731485941696,22.67274802,205.34,205.27,3.8973]
[1731485942030,23.776884,205.33,205.26,22.67274802]
[1731485942202,23.776884,205.33,205.25,9.744]
[1731485942445,23.776884,205.33,205.21,9.7459]
[1731485942683,22.67274802,205.32,205.24,22.67274802]
[1731485942694,22.67274802,205.34,205.24,22.67274802]
[1731485942899,22.67274802,205.32,205.22,22.67274802]
[1731485943123,22.67274802,205.3,205.21,9.7459]
[1731485943406,0.1,205.38,205.26,22.67274802]
[1731485943407,22.67274802,205.35,205.26,22.67274802]
[1731485943769,22.67274802,205.35,205.26,334.67274802]
[1731485944479,4.8699,205.34,205.26,22.67274802]
[1731485944676,0.1,205.42,205.28,22.67274802]
[1731485944884,22.67274802,205.38,205.28,22.67274802]
[1731485945688,22.67274802,205.43,205.34,22.67274802]
[1731485945889,27.54004802,205.45,205.36,22.67274802]
[1731485946107,4.8671,205.46,205.36,22.67274802]
[1731485946614,22.67274802,205.45,205.37,3.8954]
[1731485946818,22.67274802,205.49,205.42,22.67274802]
[1731485947079,4.8645,205.57,205.47,22.67274802]
[1731485947253,28.94114802,205.58,205.5,22.67274802]
[1731485947901,22.67274802,205.52,205.44,22.67274802]
[1731485948280,22.67274802,205.5,205.42,22.67274802]
[1731485948511,23.776884,205.51,205.44,22.67274802]
[1731485948902,23.776884,205.49,205.42,22.67274802]
[1731485949780,23.776884,205.49,205.4,22.67274802]
[1731485950010,22.67274802,205.48,205.4,22.67274802]
[1731485950224,22.67274802,205.44,205.36,22.67274802]
[1731485950385,22.67274802,205.44,205.34,22.67274802]
[1731485950587,4.8678,205.43,205.34,22.67274802]
[1731485950784,23.776884,205.42,205.36,22.67274802]
[1731485951056,46.44963202,205.42,205.32,22.67274802]
[1731485951328,46.44963202,205.42,205.3,6.6491]
[1731485951490,22.67274802,205.38,205.31,22.67274802]
[1731485951705,23.776884,205.37,205.31,22.67274802]
[1731485952032,23.776884,205.35,205.27,22.67274802]
[1731485952465,0.1,205.36,205.22,22.67274802]
[1731485952483,20.1,205.36,205.22,22.67274802]
[1731485952843,23.776884,205.31,205.24,22.67274802]
[1731485952855,23.776884,205.31,205.22,22.67274802]
[1731485953075,4.8704,205.32,205.24,22.67274802]
[1731485953246,46.44963202,205.41,205.3,22.67274802]
[1731485953401,23.776884,205.38,205.28,22.67274802]
[1731485954006,23.776884,205.38,205.28,334.67274802]
[1731485954697,4.8692,205.37,205.28,334.67274802]
[1731485954907,22.67274802,205.46,205.35,22.67274802]
[1731485955254,4.8664,205.49,205.41,22.67274802]
[1731485955474,4.8664,205.49,205.43,22.67274802]
[1731485955741,27.53744802,205.56,205.47,22.67274802]
[1731485956217,4.8647,205.56,205.49,22.67274802]
[1731485956603,4.864,205.59,205.49,22.67274802]
[1731485956814,22.67274802,205.58,205.49,22.67274802]
[1731485957221,28.82424802,205.66,205.55,22.67274802]
[1731485957530,0.2,205.72,205.5,22.67274802]
[1731485957531,4.8614,205.7,205.63,22.67274802]
[1731485958028,28.7441,205.77,205.67,22.67274802]
[1731485958029,22.67274802,205.76,205.67,22.67274802]
[1731485958345,22.67274802,205.76,205.65,22.67274802]
[1731485958630,22.67274802,205.74,205.65,22.67274802]
[1731485959507,22.67274802,205.72,205.63,22.67274802]
[1731485959813,23.776884,205.67,205.59,22.67274802]
[1731485960197,23.776884,205.65,205.57,22.67274802]
[1731485960528,22.67274802,205.64,205.55,22.67274802]
[1731485960720,28.639984,205.63,205.55,22.67274802]
[1731485960912,36.86614018,205.61,205.52,36.86614018]
[1731485961107,36.86614018,205.61,205.52,348.86614018]
[1731485961640,36.86614018,205.61,205.52,36.86614018]
[1731485961795,36.86614018,205.59,205.5,36.86614018]
[1731485962114,36.86614018,205.57,205.48,36.86614018]
[1731485962324,4.8638,205.6,205.48,36.86614018]
[1731485962325,36.86614018,205.55,205.48,36.86614018]
[1731485962907,36.86614018,205.57,205.48,36.86614018]
[1731485963105,36.86614018,205.55,205.46,36.86614018]
[1731485963505,36.86614018,205.49,205.4,36.86614018]
[1731485963928,4.8671,205.46,205.37,9.7382]
[1731485964225,4.8671,205.46,205.38,36.86614018]
[1731485964753,4.8671,205.46,205.4,312.0]
[1731485965298,12.1626,205.55,205.4,348.86614018]
[1731485965299,4.8667,205.48,205.4,348.86614018]
[1731485965511,36.86614018,205.53,205.44,36.86614018]
[1731485965714,36.86614018,205.55,205.46,36.86614018]
[1731485966011,36.86614018,205.55,205.48,36.86614018]
[1731485966611,36.86614018,205.55,205.46,36.86614018]
[1731485967004,36.86614018,205.57,205.48,36.86614018]
[1731485967300,36.86614018,205.57,205.45,9.7346]
[1731485967301,4.8638,205.6,205.52,36.86614018]
[1731485967777,41.72934018,205.63,205.54,36.86614018]
[1731485968480,41.72934018,205.63,205.47,0.22549]
[1731485968491,41.72934018,205.63,205.53,36.86614018]
[1731485968646,36.86614018,205.61,205.54,312.0]
[1731485968826,41.72984018,205.61,205.54,312.0]
[1731485969934,36.86614018,205.59,205.49,36.86614018]
[1731485970723,4.8642,205.58,205.49,36.86614018]
[1731485971432,36.86614018,205.57,205.47,36.86614018]
[1731485972405,4.8647,205.56,205.47,36.86614018]
[1731485972612,41.73034018,205.59,205.51,36.86614018]
[1731485972926,41.73034018,205.59,205.51,312.0]
[1731485973240,41.73034018,205.59,205.47,13.627]
[1731485973241,36.86614018,205.57,205.47,50.49314018]
[1731485973757,36.86614018,205.59,205.5,36.86614018]
[1731485973924,36.86614018,205.61,205.52,36.86614018]
[1731485975024,4.863,205.64,205.56,36.86614018]
[1731485975276,36.86614018,205.63,205.54,36.86614018]
[1731485976106,36.86614018,205.63,205.54,348.86614018]
[1731485976314,4.8633,205.62,205.54,348.86614018]
[1731485976531,4.8629,205.64,205.56,36.86614018]
[1731485977434,36.86614018,205.63,205.56,36.86614018]
[1731485977614,4.8633,205.62,205.56,36.86614018]
[1731485978030,36.86614018,205.63,205.56,36.86614018]
[1731485978344,4.863,205.64,205.56,36.86614018]
[1731485978837,36.86614018,205.63,205.54,50.48864018]
[1731485979147,4.862,205.68,205.6,36.86614018]
[1731485979711,36.86614018,205.65,205.6,312.0]
[1731485980228,36.86614018,205.65,205.56,36.86614018]
[1731485980445,36.86614018,205.63,205.56,36.86614018]
[1731485980815,17.0168,205.68,205.56,36.86614018]
[1731485980816,4.862,205.68,205.6,36.86614018]
[1731485981510,36.86614018,205.67,205.58,36.86614018]
[1731485981639,36.86614018,205.65,205.56,36.86614018]
[1731485982234,36.86614018,205.63,205.54,36.86614018]
[1731485982447,36.86614018,205.61,205.52,36.86614018]
[1731485982952,22.68884846,205.62,205.53,22.68884846]
[1731485983230,4.8635,205.61,205.53,334.68884846]
[1731485984759,22.68884846,205.66,205.53,13.6232]
[1731485984936,22.68884846,205.62,205.53,32.41974846]
[1731485985311,22.68884846,205.6,205.53,9.7309]
[1731485985733,22.68884846,205.58,205.53,9.7309]
[1731485986638,22.68884846,205.6,205.53,9.7309]
[1731485987950,22.68884846,205.6,205.54,312.0]
[1731485988513,22.68884846,205.62,205.54,312.0]
[1731485988716,22.68884846,205.7,205.48,25.9336]
[1731485988717,4.8627,205.65,205.56,22.68884846]
[1731485989422,22.68884846,205.66,205.56,22.68884846]
[1731485989752,22.68884846,205.63,205.55,13.6218]
[1731485989915,22.68884846,205.63,205.55,20.4116177]
[1731485990117,4.8629,205.64,205.55,20.4116177]
[1731485990118,4.8629,205.64,205.56,22.68884846]
[1731485990326,22.68884846,205.61,205.52,26.58134846]
[1731485990635,22.68884846,205.61,205.52,36.31274846]
[1731485990851,22.68884846,205.61,205.52,32.42024846]
[1731485991197,22.68884846,205.59,205.5,26.58154846]
[1731485991711,22.68884846,205.59,205.52,312.0]
[1731485992132,27.55194846,205.63,205.54,22.68884846]
[1731485994638,27.55194846,205.63,205.54,26.58094846]
[1731485994783,22.68884846,205.61,205.5,26.58164846]
[1731485995123,22.68884846,205.61,205.52,312.0]
[1731485995318,22.68884846,205.61,205.52,334.68884846]
[1731485995845,4.8638,205.6,205.52,338.58134846]
[1731485996146,4.8638,205.6,205.52,348.31274846]
[1731485996642,4.8638,205.6,205.52,36.31274846]
[1731485996823,22.68884846,205.59,205.5,22.68884846]
[1731485997623,22.68884846,205.55,205.46,43.23734846]
[1731485997963,4.8652,205.54,205.46,43.23734846]
[1731485998067,4.8652,205.54,205.46,52.97154846]
[1731485999632,22.68884846,205.57,205.48,334.68884846]
[1731485999843,22.68884846,205.59,205.5,22.68884846]
[1731486000147,4.8638,205.6,205.52,22.68884846]
[1731486001426,22.68884846,205.59,205.52,22.68884846]
[1731486001938,22.68884846,205.59,205.52,26.58114846]
[1731486002144,22.68884846,205.59,205.52,22.68884846]
[1731486002747,4.8628,205.64,205.56,22.68884846]
[1731486002942,4.8628,205.64,205.52,13.6239]
[1731486002943,4.8628,205.64,205.58,22.68884846]
[1731486003128,4.8619,205.68,205.6,22.68884846]
[1731486003498,4.8619,205.68,205.62,22.68884846]
[1731486003851,4.8619,205.68,205.6,22.68884846]
[1731486004230,4.8619,205.68,205.62,22.68884846]
[1731486004432,4.8619,205.68,205.6,22.68884846]
[1731486005051,22.68884846,205.63,205.56,22.68884846]
[1731486005316,22.68884846,205.61,205.52,22.68884846]
[1731486005548,4.8647,205.56,205.48,22.68884846]
[1731486005750,4.8647,205.56,205.5,22.68884846]
[1731486006265,4.8647,205.56,205.48,22.68884846]
[1731486006936,4.8647,205.56,205.48,334.68884846]
[1731486006948,6.2155,205.61,205.48,334.68884846]
[1731486006949,22.68884846,205.59,205.5,22.68884846]
[1731486007194,4.8645,205.58,205.5,22.68884846]
[1731486007656,4.8645,205.58,205.5,26.58164846]
[1731486008034,4.8645,205.58,205.52,22.68884846]
[1731486008264,4.8645,205.58,205.54,22.68884846]
[1731486008492,6.1551,205.73,205.57,45.37769692]
[1731486008750,4.8608,205.73,205.69,22.68884846]
[1731486009217,4.8597,205.77,205.71,22.68884846]
[1731486009491,4.8597,205.77,205.69,22.68884846]
[1731486009872,4.8597,205.77,205.65,32.41374846]
[1731486009873,22.68884846,205.74,205.65,32.41374846]
[1731486010114,22.68884846,205.76,205.69,312.0]
[1731486010960,22.68884846,205.74,205.69,312.0]
[1731486012454,4.8598,205.77,205.69,334.68884846]
[1731486012465,4.8598,205.77,205.71,22.68884846]
[1731486012695,4.8598,205.77,205.69,334.68884846]
[1731486012845,4.8598,205.77,205.71,22.68884846]
[1731486013252,22.68884846,205.78,205.69,334.68884846]
[1731486013260,22.68884846,205.76,205.69,312.0]
[1731486014762,4.8602,205.75,205.69,312.0]
[1731486015056,4.8602,205.75,205.67,22.68884846]
[1731486015766,22.68884846,205.72,205.63,22.68884846]
[1731486015969,22.68884846,205.68,205.59,22.68884846]
[1731486016178,22.68884846,205.66,205.58,15.5155]
[1731486016394,22.68884846,205.66,205.57,22.68884846]
[1731486016562,22.68884846,205.62,205.53,22.68884846]
[1731486016889,22.68884846,205.6,205.51,22.68884846]
[1731486017148,22.68884846,205.6,205.53,22.68884846]
[1731486017464,22.68884846,205.6,205.49,9.7324]
[1731486017465,22.68884846,205.6,205.51,22.68884846]
[1731486017971,4.864,205.59,205.51,334.68884846]
[1731486019059,22.68884846,205.62,205.53,22.68884846]
[1731486019851,22.68884846,205.64,205.55,22.68884846]
[1731486020854,4.8631,205.63,205.55,22.68884846]
[1731486021069,4.78596622,205.63,205.55,22.68884846]
[1731486021252,22.68884846,205.6,205.51,22.68884846]
[1731486022153,4.864,205.59,205.51,22.68884846]
[1731486023135,4.864,205.59,205.51,334.68884846]
[1731486023156,22.68884846,205.54,205.45,22.68884846]
[1731486023578,22.68884846,205.48,205.35,3.8957]
[1731486023592,22.68884846,205.48,205.39,22.68884846]
[1731486023850,22.68884846,205.5,205.41,22.68884846]
[1731486024304,22.68884846,205.44,205.35,22.68884846]
[1731486024862,4.8673,205.45,205.38,36.9307952]
[1731486025065,41.7961952,205.53,205.44,36.9307952]
[1731486025298,162.6,205.62,205.37,0.1]
[1731486025299,4.865,205.55,205.48,36.9307952]
[1731486026081,4.865,205.55,205.48,348.9307952]
[1731486027106,36.9307952,205.53,205.44,36.9307952]
[1731486027258,36.9307952,205.51,205.42,36.9307952]
[1731486027661,36.9307952,205.49,205.4,36.9307952]
[1731486027858,36.9307952,205.49,205.42,36.9307952]
[1731486028177,36.9307952,205.49,205.4,36.9307952]
[1731486028379,36.9307952,205.51,205.42,36.9307952]
[1731486029767,4.8657,205.52,205.44,36.9307952]
[1731486030054,36.9307952,205.51,205.42,36.9307952]
[1731486030168,36.9307952,205.51,205.44,312.0]
[1731486030599,36.9307952,205.51,205.42,36.9307952]
[1731486030958,4.8661,205.5,205.42,36.9307952]
[1731486031875,12.1618,205.56,205.42,36.9307952]
[1731486031876,4.8658,205.52,205.44,36.9307952]
[1731486032078,36.9307952,205.55,205.46,36.9307952]
[1731486032260,6.4487,205.57,205.5,36.9307952]
[1731486032459,4.8648,205.56,205.5,36.9307952]
[1731486033081,36.9307952,205.59,205.5,36.9307952]
[1731486033272,4.8642,205.58,205.5,36.9307952]
[1731486033480,36.9307952,205.57,205.5,312.0]
[1731486033717,36.9307952,205.53,205.44,36.9307952]
[1731486033974,36.9307952,205.55,205.46,36.9307952]
[1731486034766,36.9307952,205.53,205.44,36.9307952]
[1731486035570,36.9307952,205.55,205.46,36.9307952]
[1731486035881,36.9307952,205.59,205.5,36.9307952]
[1731486036192,4.8638,205.6,205.54,36.9307952]
[1731486036761,4.8638,205.6,205.54,312.0]
[1731486036969,36.9307952,205.57,205.48,36.9307952]
[1731486037363,36.9307952,205.55,205.46,36.9307952]
[1731486037564,4.8652,205.54,205.46,36.9307952]
[1731486037971,36.9307952,205.53,205.44,36.9307952]
[1731486039125,36.9307952,205.51,205.42,36.9307952]
[1731486039475,4.8671,205.46,205.38,36.9307952]
[1731486039783,4.8671,205.46,205.4,36.9307952]
[1731486040158,6.6184,205.5,205.42,36.9307952]
[1731486040369,4.8667,205.48,205.4,36.9307952]
[1731486040661,36.9307952,205.47,205.38,36.9307952]
[1731486041084,4.8667,205.48,205.42,36.9307952]
[1731486041301,6.6184,205.5,205.44,36.9307952]
[1731486041478,6.6184,205.5,205.4,36.9307952]
[1731486041479,4.8652,205.54,205.46,36.9307952]
[1731486041793,36.9307952,205.53,205.44,36.9307952]
[1731486042108,36.9307952,205.49,205.4,36.9307952]
[1731486042360,17.1282,205.54,205.44,36.9307952]
[1731486042361,36.9307952,205.53,205.44,36.9307952]
[1731486042576,36.9307952,205.51,205.42,36.9307952]
[1731486043385,4.8661,205.5,205.42,36.9307952]
[1731486043884,36.9307952,205.49,205.4,36.9307952]
[1731486045723,4.8666,205.48,205.4,36.9307952]
[1731486046805,4.8657,205.52,205.44,36.9307952]
[1731486047093,4.8654,205.54,205.48,36.9307952]
[1731486047263,15.2536,205.61,205.4,37.0562852]
[1731486047264,4.8642,205.58,205.52,36.9307952]
[1731486047537,4.8642,205.58,205.43,6.5835]
[1731486047538,4.8642,205.58,205.54,36.9307952]
[1731486047689,11.2224,205.6,205.56,36.9307952]
[1731486047889,4.8639,205.6,205.56,36.9307952]
[1731486048103,36.9307952,205.65,205.56,36.9307952]
[1731486048104,4.8628,205.64,205.56,36.9307952]
[1731486048311,11.4124,205.66,205.58,36.9307952]
[1731486048541,36.9307952,205.65,205.56,36.9307952]
[1731486048781,36.9307952,205.63,205.54,36.9307952]
[1731486049199,36.9307952,205.63,205.51,23.776884]
[1731486049200,36.9307952,205.65,205.56,36.9307952]
[1731486049370,4.8628,205.64,205.58,36.9307952]
[1731486049577,4.8616,205.7,205.62,36.9307952]
[1731486049779,4.8616,205.7,205.64,36.9307952]
[1731486049999,43.4806952,205.77,205.68,36.9307952]
[1731486050893,36.9307952,205.75,205.66,36.9307952]
[1731486051195,4.8605,205.74,205.66,36.9307952]
[1731486052579,36.9307952,205.73,205.64,36.9307952]
[1731486053076,36.9307952,205.73,205.64,348.9307952]
[1731486053272,4.8605,205.74,205.66,36.9307952]
[1731486054529,6.5499,205.77,205.6,36.9307952]
[1731486054530,6.5499,205.77,205.7,36.9307952]
[1731486054707,48.3404952,205.77,205.68,36.9307952]
[1731486054913,36.9307952,205.75,205.68,36.9307952]
[1731486055117,48.3404952,205.77,205.68,36.9307952]
[1731486055512,41.7905952,205.77,205.68,36.9307952]
[1731486056899,36.9307952,205.73,205.64,40.8208952]
[1731486057074,36.9307952,205.75,205.66,36.9307952]
[1731486057405,41.7901952,205.79,205.7,36.9307952]
[1731486058120,41.7895952,205.81,205.72,36.9307952]
[1731486059789,36.9307952,205.79,205.7,36.9307952]
[1731486060834,36.9307952,205.79,205.7,348.9307952]
[1731486061071,4.8595,205.78,205.7,348.9307952]
[1731486061388,36.9307952,205.77,205.68,36.9307952]
[1731486061583,36.9307952,205.73,205.64,46.6560952]
[1731486061796,36.9307952,205.75,205.66,36.9307952]
[1731486062001,36.9307952,205.77,205.68,36.9307952]
[1731486062497,36.9307952,205.75,205.66,36.9307952]
[1731486062921,22.6586004,205.75,205.66,22.6586004]
[1731486063094,22.6586004,205.77,205.68,22.6586004]
[1731486063403,22.6586004,205.75,205.66,36.2730004]
[1731486063954,22.6586004,205.73,205.64,22.6586004]
[1731486064504,22.6586004,205.75,205.68,22.6586004]
[1731486064883,22.6586004,205.75,205.66,22.6586004]
[1731486065082,4.8605,205.74,205.66,22.6586004]
[1731486065807,22.6586004,205.75,205.66,36.2731004]
[1731486066018,4.8596,205.78,205.7,22.6586004]
[1731486067389,4.8596,205.78,205.7,26.5477004]
[1731486067832,2.26210647,205.83,205.74,22.6586004]
[1731486068029,4.8584,205.83,205.76,22.6586004]
[1731486068369,4.8584,205.83,205.71,15.2048]
[1731486068545,4.8584,205.83,205.76,22.6586004]
[1731486068912,0.5114873,205.84,205.78,22.6586004]
[1731486069110,0.5114873,205.84,205.71,15.2048]
[1731486069111,5.3695873,205.84,205.76,32.3785004]
[1731486069330,22.6586004,205.82,205.72,32.3805004]
[1731486069517,22.6586004,205.74,205.66,22.6586004]
[1731486069770,22.6586004,205.72,205.64,32.3842004]
[1731486069918,22.6586004,205.72,205.64,36.2744004]
[1731486070289,22.6586004,205.72,205.64,9.7256]
[1731486070602,22.6586004,205.7,205.62,26.5491004]
[1731486070809,22.6586004,205.72,205.62,26.5491004]
[1731486071003,22.6586004,205.72,205.64,22.6586004]
[1731486071200,22.6586004,205.74,205.66,22.6586004]
[1731486071404,22.6586004,205.74,205.65,3.8901]
[1731486072101,22.6586004,205.72,205.64,312.0]
[1731486072333,22.6586004,205.7,205.63,4.01579]
[1731486072818,22.6586004,205.7,205.62,22.6586004]
[1731486073001,22.6586004,205.7,205.58,6.1208]
[1731486073002,4.8626,205.65,205.58,22.6586004]
[1731486073222,22.6586004,205.66,205.59,0.12549]
[1731486073488,27.5205004,205.68,205.6,22.6586004]
[1731486074025,22.6586004,205.66,205.58,22.6586004]
[1731486074355,4.8619,205.68,205.56,22.6586004]
[1731486074356,22.6586004,205.64,205.56,22.6586004]
[1731486074711,4.8619,205.68,205.54,13.6224]
[1731486074712,22.6586004,205.68,205.6,22.6586004]
[1731486074931,22.6586004,205.72,205.62,22.6586004]
[1731486075137,22.6586004,205.72,205.64,22.6586004]
[1731486075310,22.6586004,205.72,205.58,13.6199]
[1731486075311,22.6586004,205.7,205.62,334.6586004]
[1731486075520,22.6586004,205.66,205.58,36.2785004]
[1731486075901,22.6586004,205.7,205.62,22.6586004]
[1731486077212,4.8616,205.69,205.6,22.6586004]
[1731486077824,22.6586004,205.68,205.6,22.6586004]
[1731486078139,27.5206004,205.68,205.6,26.5495004]
[1731486078510,27.5206004,205.68,205.6,338.5495004]
[1731486078710,27.5206004,205.68,205.6,334.6586004]
[1731486079039,22.6586004,205.66,205.58,9.7285]
[1731486079341,22.6586004,205.66,205.56,26.5502004]
[1731486079575,22.6586004,205.68,205.61,22.6586004]
[1731486079922,27.5205004,205.68,205.61,22.6586004]
[1731486080515,22.6586004,205.66,205.58,3.8912]
[1731486081021,27.5205004,205.68,205.59,22.6586004]
[1731486081221,22.6586004,205.72,205.63,22.6586004]
[1731486081521,27.5191004,205.74,205.65,22.6586004]
[1731486081911,27.5191004,205.74,205.65,334.6586004]
[1731486082099,4.8605,205.74,205.67,22.6586004]
[1731486082518,27.5191004,205.74,205.65,22.6586004]
[1731486082809,22.6586004,205.7,205.62,9.7266]
[1731486083048,22.6586004,205.72,205.63,22.6586004]
[1731486083199,22.6586004,205.72,205.65,22.6586004]
[1731486083404,4.8605,205.74,205.67,22.6586004]
[1731486083823,6.4781,205.75,205.67,22.6586004]
[1731486084024,11.3384,205.75,205.67,22.6586004]
[1731486084306,11.3384,205.75,205.68,3.8895]
[1731486084713,11.3384,205.75,205.69,22.6586004]
[1731486084924,4.8598,205.77,205.71,22.6586004]
[1731486085224,27.5169004,205.83,205.75,22.6586004]
[1731486085434,4.8583,205.83,205.77,22.6586004]
[1731486085841,4.8583,205.83,205.75,22.6586004]
[1731486086842,0.5114873,205.84,205.75,22.6586004]
[1731486086843,0.5114873,205.84,205.79,22.6586004]
[1731486086865,0.5114873,205.84,205.83,22.6586004]
[1731486087207,0.5114873,205.84,205.79,6.86150246]
[1731486087208,0.5114873,205.84,205.79,22.6586004]
[1731486087430,0.5114873,205.84,205.81,22.6586004]
[1731486088342,0.5114873,205.84,205.79,22.6586004]
[1731486088543,0.5114873,205.84,205.79,334.6586004]
[1731486089716,0.5114873,205.84,205.81,22.6586004]
[1731486090684,0.5114873,205.84,205.83,22.6586004]
[1731486091726,0.5114873,205.84,205.81,22.6586004]
[1731486091938,0.5114873,205.84,205.82,3.8868]
[1731486092246,0.5114873,205.84,205.8,26.5457004]
[1731486092757,0.5114873,205.84,205.8,36.2638004]
[1731486093627,0.5114873,205.84,205.8,348.2638004]
[1731486094129,0.5114873,205.84,205.82,22.6586004]
[1731486095839,0.5114873,205.84,205.81,3.8869]
[1731486096038,0.5114873,205.84,205.8,32.3767004]
[1731486096232,0.5114873,205.84,205.83,0.12549]
[1731486097546,0.5114873,205.84,205.83,316.01219]
[1731486098124,0.5114873,205.84,205.83,4.01219]
[1731486098863,94.2622,206.09,205.85,0.1]
[1731486098864,4.8547,205.99,205.85,0.1]
[1731486099058,4.8547,205.99,205.91,22.6586004]
[1731486099221,22.6586004,205.98,205.89,22.6586004]
[1731486100004,27.5136004,205.98,205.89,22.6586004]
[1731486100310,22.6586004,205.96,205.88,9.7141]
[1731486100678,22.6586004,205.94,205.85,26.5448004]
[1731486100748,22.6586004,205.94,205.85,22.6586004]
[1731486100926,22.6586004,205.96,205.87,22.6586004]
[1731486101634,22.6586004,205.92,205.83,22.6586004]
[1731486101823,4.8569,205.89,205.81,22.6586004]
[1731486102952,4.8569,205.89,205.83,22.6586004]
[1731486103269,4.8569,205.89,205.78,13.6067]
[1731486103270,4.8569,205.89,205.81,22.6586004]
[1731486103946,4.8569,205.89,205.78,13.6067]
[1731486103947,4.8574,205.87,205.78,22.6586004]
[1731486104128,4.8574,205.87,205.8,22.6586004]
[1731486104842,37.8521004,205.9,205.8,22.6586004]
[1731486105044,4.8569,205.89,205.8,22.6586004]
[1731486105640,22.6586004,205.88,205.78,22.6586004]
[1731486105998,4.8569,205.89,205.69,7.12150246]
[1731486105999,4.8569,205.89,205.82,22.6586004]
[1731486106277,27.5155004,205.89,205.8,22.6586004]
[1731486106936,27.5155004,205.89,205.77,9.7191]
[1731486107129,22.6586004,205.86,205.76,22.6586004]
[1731486107332,22.6586004,205.84,205.74,22.6586004]
[1731486107618,22.6586004,205.84,205.68,9.7238]
[1731486107619,22.6586004,205.78,205.7,22.6586004]
[1731486107855,22.6586004,205.76,205.68,22.6586004]
[1731486108105,22.6586004,205.76,205.66,22.6586004]
[1731486108850,22.6586004,205.76,205.68,22.6586004]
[1731486109150,4.8602,205.75,205.68,22.6586004]
[1731486109410,6.5837,205.79,205.72,22.6586004]
[1731486109705,11.4431,205.79,205.72,22.6586004]
[1731486109876,6.5837,205.79,205.74,22.6586004]
[1731486110040,2.26202954,205.81,205.74,22.6586004]
[1731486110241,22.6586004,205.8,205.72,22.6586004]
[1731486111042,4.8593,205.79,205.72,22.6586004]
[1731486111451,4.8583,205.83,205.74,22.6586004]
[1731486111656,22.6586004,205.82,205.74,22.6586004]
[1731486112364,22.6586004,205.82,205.72,32.3805004]
[1731486112532,22.6586004,205.8,205.72,22.6586004]
[1731486113296,4.8593,205.79,205.72,22.6586004]
[1731486115054,4.859,205.81,205.74,22.6586004]
[1731486115254,4.859,205.81,205.72,312.0]
[1731486115255,4.8583,205.83,205.76,22.6586004]
[1731486115448,22.6586004,205.88,205.8,22.6586004]
[1731486116456,4.8574,205.87,205.8,22.6586004]
[1731486117284,28.7160004,205.9,205.82,22.6586004]
[1731486117447,22.6586004,205.88,205.8,22.6586004]
[1731486117942,22.6586004,205.88,205.78,22.6586004]
[1731486118153,22.6586004,205.86,205.76,22.6586004]
[1731486118551,4.8579,205.85,205.76,22.6586004]
[1731486118868,22.6586004,205.84,205.76,22.6586004]
[1731486119369,4.8579,205.85,205.78,22.6586004]
[1731486119955,4.8579,205.85,205.8,22.6586004]
[1731486120352,22.6586004,205.88,205.8,22.6586004]
[1731486120547,22.6586004,205.88,205.75,9.7205]
[1731486120548,4.8574,205.87,205.78,22.6586004]
[1731486120767,22.6586004,205.84,205.76,22.6586004]
[1731486120968,4.8574,205.87,205.74,22.6586004]
[1731486120969,22.6586004,205.82,205.74,22.6586004]
[1731486121173,22.6586004,205.78,205.7,22.6586004]
[1731486121525,22.6586004,205.82,205.72,22.6586004]
[1731486121635,22.6586004,205.82,205.74,22.6586004]
[1731486121979,22.6586004,205.82,205.72,22.6586004]
[1731486122388,22.6586004,205.82,205.74,22.6586004]
[1731486122564,27.5162004,205.86,205.78,22.6586004]
[1731486123073,27.5162004,205.86,205.78,334.6586004]